fUST/lending_fUST_20250801
["ID","MTS","AMOUNT","RATE_DAILY","PERIOD"]
[376560827,1754022639823,-230.97488085,0.00021188,2]
[376560828,1754022639832,-426.30299753,0.00021188,2]
[376560829,1754022639841,-426.10617916,0.00021188,2]
[376560830,1754022639851,-777.23,0.00021188,2]
[376560831,1754022639861,-809.45,0.00021188,2]
[376560832,1754022639870,-839.49,0.00021188,2]
[376560833,1754022639879,-505.68,0.00021188,2]
[376560834,1754022639889,-292.40272672,0.00021188,2]
[376560835,1754022639901,-167.59727328,0.00021188,2]
[376560836,1754022639911,-565.21,0.00021188,2]
[376560837,1754022639920,-151.0,0.00021189,2]
[376560838,1754022639929,-125.73327145,0.00021189,2]
[376560839,1754022639941,-434.26672855,0.00021189,2]
[376560840,1754022639950,-151.0,0.00021189,2]
[376560841,1754022639959,-151.0,0.00021189,2]
[376560842,1754022639968,-151.0,0.00021189,2]
[376560843,1754022639977,-460.0,0.00021189,2]
[376560845,1754022639987,-151.0,0.0002119,2]
[376560847,1754022639996,-151.91789633,0.0002119,2]
[376560849,1754022640006,-151.0,0.0002119,2]
[376560851,1754022640015,-151.0,0.0002119,2]
[376560853,1754022640024,-1051.82857951,0.0002119,2]
[376560854,1754022640036,-1172.39142049,0.0002119,2]
[376560855,1754022640045,-572.64,0.0002119,2]
[376560856,1754022640055,-287.1273707,0.00021198,2]
[376560857,1754022640065,-460.0,0.00021199,2]
[376560858,1754022640074,-598.29,0.00021199,2]
[376560859,1754022640084,-460.0,0.000212,2]
[376560860,1754022640094,-460.0,0.000212,2]
[376560861,1754022640103,-1120.03,0.000212,2]
[376560862,1754022640112,-607.39,0.000212,2]
[376560863,1754022640121,-877.47,0.000212,2]
[376560864,1754022640131,-432.3428543,0.00021201,2]
[376560865,1754022640140,-430.3749276,0.00021201,2]
[376560866,1754022640149,-430.3749276,0.00021201,2]
[376560867,1754022640159,-759.09,0.0002122,2]
[376560868,1754022640167,-426.83268321,0.0002122,2]
[376560869,1754022640176,-311.99869016,0.0002122,2]
[376560870,1754022640189,-1133.79130984,0.0002122,2]
[376560871,1754022640198,-380.31435033,0.00021225,2]
[376560872,1754022640209,-274.7837653,0.00021225,2]
[376560873,1754022640219,-231.627494,0.0002123,2]
[376560874,1754022640228,-89.40870309,0.0002126,2]
[376560887,1754022640522,-214.41131181,0.000199,2]
[376560889,1754022640532,-62.31401291,0.0002126,2]
[376560891,1754022640541,-151.0,0.0002126,2]
[376560893,1754022640551,-295.6,0.00021399,4]
[376560896,1754022640561,-221.08,0.00021451,10]
[376560898,1754022640570,-460.0,0.00021461,2]
[376560900,1754022640579,-1291.59,0.00021461,2]
[376560902,1754022640590,-745.72768749,0.00021461,2]
[376560905,1754022640733,-497.45231251,0.00021461,2]
[376560906,1754022640742,-460.0,0.00021461,2]
[376560907,1754022640752,-191.04451321,0.00021461,2]
[376560908,1754022640761,-393.71049908,0.00021461,2]
[376560909,1754022640773,-340.365,0.00021461,2]
[376560910,1754022641062,-10.40450092,0.00021461,2]
[376560911,1754022641072,-500.59,0.00021461,2]
[376560912,1754022641081,-460.0,0.00021461,2]
[376560913,1754022641091,-460.0,0.00021461,2]
[376560914,1754022641100,-460.0,0.00021461,2]
[376560915,1754022641110,-460.0,0.00021461,2]
[376560916,1754022641120,-460.0,0.00021461,2]
[376560917,1754022641130,-300.81559515,0.00021461,2]
[376560918,1754022641139,-501.56,0.00021461,2]
[376560919,1754022641149,-460.0,0.00021461,2]
[376560920,1754022641158,-443.07550467,0.00021461,2]
[376560921,1754022641167,-198.0,0.00021462,2]
[376560922,1754022641176,-1866.16,0.00021462,2]
[376560923,1754022641186,-777.23,0.00021462,2]
[376560924,1754022641195,-809.45,0.00021462,2]
[376560925,1754022641205,-839.49,0.00021462,2]
[376560926,1754022641215,-505.68,0.00021462,2]
[376560927,1754022641224,-460.0,0.00021462,2]
[376560928,1754022641234,-565.21,0.00021462,2]
[376560929,1754022641243,-199.61432816,0.00021463,2]
[376560930,1754022641253,-560.0,0.00021463,2]
[376560931,1754022641262,-198.0,0.00021463,2]
[376560932,1754022641271,-268.2975092,0.00021463,2]
[376560933,1754022641280,-151.0,0.00021463,2]
[376560934,1754022641289,-460.0,0.00021463,2]
[376560935,1754022641299,-198.0,0.00021464,2]
[376560936,1754022641308,-2224.22,0.00021464,2]
[376560937,1754022641317,-572.64,0.00021464,2]
[376560938,1754022641327,-151.0,0.00021473,2]
[376560939,1754022641337,-460.0,0.00021473,2]
[376560940,1754022641347,-598.29,0.00021473,2]
[376560941,1754022641356,-460.0,0.00021474,2]
[376560942,1754022641365,-1120.03,0.00021474,2]
[376560943,1754022641375,-607.39,0.00021474,2]
[376560944,1754022641384,-877.47,0.00021474,2]
[376560945,1754022641393,-759.09,0.00021494,2]
[376560946,1754022641402,-1445.79,0.00021494,2]
[376560947,1754022641411,-1000.0,0.00021521,2]
[376560948,1754022641421,-206.66579807,0.00021615,2]
[376560949,1754022641430,-655.57807818,0.00021635,2]
[376560950,1754022641439,-655.09811563,0.00021635,2]
[376560951,1754022641448,-151.0,0.00021647,2]
[376560952,1754022641458,-364.1,0.00021713,3]
[376560953,1754022641467,-182.05,0.00021713,3]
[376560954,1754022641475,-546.17,0.00021713,3]
[376560955,1754022641484,-97750.94189397,0.00021723,2]
[376560956,1754022641494,-380.55,0.00021735,2]
[376560957,1754022641503,-1291.59,0.00021735,2]
[376560958,1754022641512,-1243.18,0.00021735,2]
[376560959,1754022641521,-460.0,0.00021735,2]
[376560960,1754022641530,-744.48,0.00021735,2]
[376560961,1754022641539,-460.0,0.00021735,2]
[376560962,1754022641549,-460.0,0.00021735,2]
[376560963,1754022641558,-460.0,0.00021735,2]
[376560964,1754022641567,-460.0,0.00021735,2]
[376560965,1754022641577,-501.56,0.00021735,2]
[376560966,1754022641587,-460.0,0.00021735,2]
[376560967,1754022641596,-1866.16,0.00021736,2]
[376560968,1754022641605,-777.23,0.00021736,2]
[376560969,1754022641615,-809.45,0.00021736,2]
[376560970,1754022641624,-839.49,0.00021736,2]
[376560971,1754022641633,-505.68,0.00021736,2]
[376560972,1754022641642,-460.0,0.00021736,2]
[376560973,1754022641652,-565.21,0.00021736,2]
[376560974,1754022641661,-560.0,0.00021737,2]
[376560975,1754022641671,-196.17687043,0.00021737,2]
[376560976,1754022641680,-460.0,0.00021737,2]
[376560977,1754022641690,-2224.22,0.00021738,2]
[376560978,1754022641699,-572.64,0.00021738,2]
[376560979,1754022641708,-208.317273,0.00021747,2]
[376560980,1754022641717,-554.06467495,0.00021747,2]
[376560981,1754022641728,-598.29,0.00021747,2]
[376560982,1754022641739,-460.0,0.00021748,2]
[376560983,1754022641748,-1120.03,0.00021748,2]
[376560984,1754022641757,-607.39,0.00021748,2]
[376560985,1754022641767,-877.47,0.00021748,2]
[376560986,1754022641777,-225.44,0.00021754,2]
[376560987,1754022641786,-759.09,0.00021768,2]
[376560988,1754022641795,-1445.79,0.00021768,2]
[376560989,1754022641805,-500.0,0.00021773,2]
[376560990,1754022641814,-295.6,0.00021864,4]
[376560991,1754022641824,-167.42798269,0.000219,4]
[376560992,1754022641833,-3033.41750054,0.000219,2]
[376560993,1754022641842,-208.317273,0.00021923,7]
[376560994,1754022641852,-151.0,0.00021923,7]
[376560995,1754022641861,-1170.46464848,0.00021923,2]
[376560996,1754022641871,-152.0,0.00021923,2]
[376560997,1754022641880,-152.0,0.00021923,2]
[376560998,1754022641889,-152.0,0.00021923,2]
[376560999,1754022641898,-152.0,0.00021923,2]
[376561000,1754022641907,-183.15550768,0.00021923,2]
[376561001,1754022641917,-155.0,0.00021923,2]
[376561002,1754022641926,-152.0,0.00021923,2]
[376561003,1754022641936,-500.0,0.00021973,2]
[376561004,1754022641946,-500.0,0.00021973,2]
[376561005,1754022641955,-500.0,0.00021973,2]
[376561006,1754022641964,-500.0,0.00021973,2]
[376561007,1754022641981,-11136.71777103,0.0002198,2]
[376561008,1754022641993,-688.02792288,0.00021995,2]
[376561009,1754022642003,-688.02792288,0.00021995,2]
[376561010,1754022642013,-688.02792288,0.00021995,2]
[376561011,1754022642023,-688.02792288,0.00021995,2]
[376561012,1754022642033,-688.02792288,0.00021995,2]
[376561013,1754022642043,-615.0871129,0.00021995,2]
[376561014,1754022642151,-72.94080998,0.00021995,2]
[376561015,1754022642161,-206.47085738,0.00021995,2]
[376561016,1754022642292,-481.5570655,0.00021995,2]
[376561017,1754022642302,-688.02792288,0.00021995,2]
[376561018,1754022642312,-688.02792288,0.00021995,2]
[376561019,1754022642321,-688.02792288,0.00021995,2]
[376561020,1754022642330,-688.02792288,0.00021995,2]
[376561021,1754022642341,-688.02792288,0.00021995,2]
[376561022,1754022642351,-688.02792288,0.00021995,2]
[376561023,1754022642360,-688.02792288,0.00021995,2]
[376561024,1754022642369,-688.02792288,0.00021995,2]
[376561025,1754022642379,-688.02792288,0.00021995,2]
[376561026,1754022642388,-688.02792288,0.00021995,2]
[376561027,1754022642397,-447.65619619,0.00022,7]
[376561057,1754022643325,-1036.96380381,0.00022,7]
[376561059,1754022643336,-2407.99698369,0.00022,7]
[376561062,1754022643348,-2981.1143288,0.00022,7]
[376561129,1754022646298,-347.18846441,0.00022,7]
[376561130,1754022646309,-461.49325317,0.00022,7]
[376561131,1754022646356,-5217.86696993,0.00022,7]
[376561132,1754022646365,-151.0,0.00022,7]
[376561133,1754022646377,-151.0,0.00022,7]
[376561134,1754022646386,-151.0,0.00022,7]
[376561135,1754022646395,-151.0,0.00022,7]
[376561136,1754022646404,-151.0,0.00022,7]
[376561137,1754022646414,-156.028337,0.00022,7]
[376561138,1754022646422,-1198.014496,0.00022,7]
[376561139,1754022646432,-1198.014496,0.00022,7]
[376561140,1754022646441,-151.0,0.00022,7]
[376561141,1754022646450,-151.0,0.00022,7]
[376561142,1754022646459,-152.967207,0.00022,7]
[376561143,1754022646468,-151.0,0.00022,7]
[376561144,1754022646477,-151.0,0.00022,7]
[376561145,1754022646486,-151.0,0.00022,7]
[376561146,1754022646495,-160.0,0.00022,7]
[376561147,1754022646505,-1355.55,0.00022,2]
[376561148,1754022646514,-1291.59,0.00022009,2]
[376561149,1754022646523,-1243.18,0.00022009,2]
[376561150,1754022646532,-460.0,0.00022009,2]
[376561151,1754022646541,-744.48,0.00022009,2]
[376561152,1754022646551,-460.0,0.00022009,2]
[376561153,1754022646560,-460.0,0.00022009,2]
[376561154,1754022646569,-460.0,0.00022009,2]
[376561155,1754022646578,-460.0,0.00022009,2]
[376561156,1754022646587,-501.56,0.00022009,2]
[376561157,1754022646597,-460.0,0.00022009,2]
[376561158,1754022646608,-1866.16,0.0002201,2]
[376561159,1754022646617,-777.23,0.0002201,2]
[376561160,1754022646627,-809.45,0.0002201,2]
[376561161,1754022646636,-839.49,0.0002201,2]
[376561162,1754022646645,-505.68,0.0002201,2]
[376561163,1754022646654,-460.0,0.0002201,2]
[376561164,1754022646664,-565.21,0.0002201,2]
[376561165,1754022646673,-560.0,0.00022011,2]
[376561166,1754022646682,-460.0,0.00022011,2]
[376561167,1754022646692,-2224.22,0.00022012,2]
[376561168,1754022646701,-572.64,0.00022012,2]
[376561169,1754022646710,-151.0,0.00022018,7]
[376561170,1754022646720,-151.0,0.00022018,7]
[376561171,1754022646731,-151.0,0.00022018,7]
[376561172,1754022646759,-151.0,0.00022018,7]
[376561173,1754022646769,-201.942354,0.00022019,7]
[376561174,1754022646779,-151.0,0.00022019,7]
[376561175,1754022646788,-377.079781,0.00022019,7]
[376561176,1754022646797,-377.079781,0.00022019,7]
[376561177,1754022646809,-598.29,0.00022021,2]
[376561178,1754022646818,-152.716453,0.00022022,7]
[376561179,1754022646827,-151.0,0.00022022,7]
[376561180,1754022646836,-151.0,0.00022022,7]
[376561181,1754022646847,-151.0,0.00022022,7]
[376561182,1754022646856,-460.0,0.00022022,2]
[376561183,1754022646865,-1120.03,0.00022022,2]
[376561184,1754022646874,-607.39,0.00022022,2]
[376561185,1754022646883,-877.47,0.00022022,2]
[376561186,1754022646893,-759.09,0.00022042,2]
[376561187,1754022646903,-1445.79,0.00022042,2]
[376561188,1754022646913,-503.78864115,0.00022073,2]
[376561189,1754022646922,-505.27474466,0.00022073,2]
[376561190,1754022646931,-528.82260462,0.00022073,2]
[376561191,1754022646940,-500.60236846,0.00022073,2]
[376561192,1754022646950,-600.0,0.00022131,2]
[376561193,1754022646959,-430.3749276,0.0002216,2]
[376561194,1754022646968,-430.3749276,0.0002216,2]
[376561195,1754022646977,-230.78716041,0.00022161,2]
[376561196,1754022646987,-168.0,0.00022229,2]
[376561197,1754022646997,-655.57807817,0.00022252,2]
[376561198,1754022647007,-1291.59,0.00022283,2]
[376561199,1754022647015,-1243.18,0.00022283,2]
[376561200,1754022647025,-460.0,0.00022283,2]
[376561201,1754022647034,-744.48,0.00022283,2]
[376561202,1754022647043,-460.0,0.00022283,2]
[376561203,1754022647052,-460.0,0.00022283,2]
[376561204,1754022647061,-460.0,0.00022283,2]
[376561205,1754022647071,-460.0,0.00022283,2]
[376561206,1754022647081,-501.56,0.00022283,2]
[376561207,1754022647090,-460.0,0.00022283,2]
[376561208,1754022647099,-1866.16,0.00022284,2]
[376561209,1754022647109,-777.23,0.00022284,2]
[376561210,1754022647118,-809.45,0.00022284,2]
[376561211,1754022647128,-839.49,0.00022284,2]
[376561212,1754022647137,-505.68,0.00022284,2]
[376561213,1754022647147,-460.0,0.00022284,2]
[376561214,1754022647156,-565.21,0.00022284,2]
[376561215,1754022647165,-560.0,0.00022285,2]
[376561216,1754022647175,-460.0,0.00022285,2]
[376561217,1754022647184,-2224.22,0.00022286,2]
[376561218,1754022647193,-572.64,0.00022286,2]
[376561219,1754022647202,-598.29,0.00022295,2]
[376561220,1754022647211,-460.0,0.00022296,2]
[376561221,1754022647220,-1120.03,0.00022296,2]
[376561222,1754022647229,-607.39,0.00022296,2]
[376561223,1754022647239,-877.47,0.00022296,2]
[376561224,1754022647248,-243.25,0.000223,2]
[376561225,1754022647257,-759.09,0.00022316,2]
[376561226,1754022647266,-1445.79,0.00022316,2]
[376561227,1754022647275,-295.6,0.0002233,4]
[376561228,1754022647285,-526.925583,0.00022354,2]
[376561229,1754022647294,-160.0,0.00022354,2]
[376561230,1754022647304,-460.76838597,0.00022354,2]
[376561231,1754022647313,-841.53699354,0.00022358,2]
[376561232,1754022647322,-160.0,0.00022358,2]
[376561233,1754022647332,-151.0,0.00022386,7]
[376561234,1754022647341,-151.0,0.00022386,7]
[376561235,1754022647351,-151.0,0.00022386,7]
[376561236,1754022647360,-151.0,0.00022396,7]
[376561237,1754022647369,-152.68471,0.00022396,7]
[376561238,1754022647378,-151.0,0.00022396,7]
[376561239,1754022647388,-169.007359,0.00022396,7]
[376561240,1754022647397,-151.0,0.00022396,7]
[376561241,1754022647406,-206.66579807,0.00022418,2]
[376561242,1754022647415,-168.0,0.00022444,2]
[376561243,1754022647424,-160.0,0.00022491,2]
[376561244,1754022647433,-1000.0,0.00022521,2]
[376561245,1754022647442,-721.34541957,0.00022521,2]
[376561246,1754022647451,-1198.014496,0.00022533,7]
[376561247,1754022647460,-1198.014496,0.00022533,7]
[376561248,1754022647469,-168.0,0.00022533,2]
[376561249,1754022647478,-151.0,0.00022556,7]
[376561250,1754022647488,-151.0,0.00022557,7]
[376561251,1754022647497,-151.0,0.00022557,7]
[376561252,1754022647507,-1291.59,0.00022557,2]
[376561253,1754022647516,-1243.18,0.00022557,2]
[376561254,1754022647525,-460.0,0.00022557,2]
[376561255,1754022647535,-601.49771873,0.00022557,2]
[376561256,1754022647549,-142.98228127,0.00022557,2]
[376561257,1754022647559,-196.77771863,0.00022557,2]
[376561258,1754022647570,-254.77268796,0.00022557,2]
[376561259,1754022768955,263.0,0.00023,30]
[376561261,1754022835615,261.236016,0.00013699,2]
[376561262,1754022850597,10000.0,0.00023,30]
[376561274,1754023553162,-159.31548,0.0001956,2]
[376561275,1754023627089,-1034.0,0.00019526,2]
[376561276,1754023627113,-300.0,0.00019526,2]
[376561277,1754023627137,-321.63577609,0.00019527,2]
[376561278,1754023631259,162.53868236,0.00018,5]
[376561279,1754023644100,-856.13264851,0.00019527,2]
[376561280,1754023746112,-300.0,0.00019526,2]
[376561281,1754023746134,-10663.0871784,0.00019527,2]
[376561282,1754023746155,-57.319369,0.0001956,2]
[376561283,1754023746179,-200.0,0.00019917,15]
[376561284,1754023746202,-200.0,0.00019917,15]
[376561285,1754023746224,-200.0,0.00019917,15]
[376561286,1754023746246,-200.0,0.00019917,15]
[376561287,1754023746266,-160.0,0.0002,3]
[376561288,1754023746285,-160.0,0.0002,3]
[376561289,1754023746307,-1084.0,0.00020186,2]
[376561290,1754023746328,-460.0,0.00020187,2]
[376561291,1754023746349,-460.0,0.00020187,2]
[376561292,1754023746370,-460.0,0.00020187,2]
[376561293,1754023746391,-411.27477367,0.00020187,2]
[376561294,1754023746413,-460.0,0.00020187,2]
[376561295,1754023746434,-147.84250195,0.00020187,2]
[376561296,1754023766102,-313.05037749,0.00020187,2]
[376561297,1754023766137,-282.48693469,0.00020187,2]
[376561298,1754023766163,-460.0,0.00020187,2]
[376561299,1754023766184,-261.236016,0.00020187,2]
[376561300,1754023766208,-460.0,0.00020461,2]
[376561301,1754023766228,-425.28667182,0.00020461,2]
[376561302,1754023787521,450.8,0.00019793,2]
[376561303,1754023787541,277.7301749,0.00019793,2]
[376561364,1754023832820,-271.4698251,0.00019793,2]
[376561366,1754023832832,-160.0,0.0002,3]
[376561367,1754023832844,-217.46602456,0.00020359,4]
[376561368,1754023832855,-34.71332818,0.00020461,2]
[376561370,1754023832867,-1463.08081059,0.00020461,2]
[376561371,1754023832878,-460.0,0.00020589,2]
[376561372,1754023832889,-460.0,0.00020589,2]
[376561373,1754023832901,-282.49843709,0.00020589,2]
[376561374,1754023832944,-158.9858995,0.00020589,2]
[376561375,1754023832958,-235.47566341,0.00020589,2]
[376561377,1754023832972,-332.29194064,0.00020589,2]
[376561397,1754023838614,-6625.32598411,0.00019,2]
[376561400,1754023838631,-17337.67401589,0.00019,2]
[376561402,1754023838643,-200.3777808,0.0001984,2]
[376561404,1754023838654,-130.8237531,0.00020589,2]
[376561405,1754023838664,-466.4106172,0.00020589,2]
[376561406,1754023838674,-1383.22,0.00020589,2]
[376561407,1754023838684,-731.5404053,0.00020589,2]
[376561408,1754023838694,-463.83257287,0.00020669,2]
[376561409,1754023838705,-386.14242188,0.00020669,2]
[376561410,1754023838715,-460.0,0.0002067,2]
[376561411,1754023838727,-463.45489246,0.0002067,2]
[376561412,1754023838738,-460.0,0.0002067,2]
[376561413,1754023838751,-460.0,0.0002067,2]
[376561414,1754023838763,-460.0,0.0002067,2]
[376561415,1754023838775,-462.14564478,0.0002067,2]
[376561416,1754023838786,-1060.45,0.0002067,2]
[376561417,1754023838796,-460.0,0.0002067,2]
[376561418,1754023838806,-460.0,0.0002067,2]
[376561419,1754023838817,-460.0,0.0002067,2]
[376561420,1754023838828,-466.84009213,0.0002067,2]
[376561421,1754023838839,-499.36205538,0.0002067,2]
[376561422,1754023838851,-460.0,0.0002067,2]
[376561423,1754023838862,-661.51,0.0002067,2]
[376561424,1754023838872,-460.0,0.0002067,2]
[376561425,1754023838883,-462.47371454,0.0002067,2]
[376561426,1754023838893,-460.0,0.0002067,2]
[376561427,1754023838904,-471.99930157,0.0002067,2]
[376561428,1754023838914,-460.0,0.0002067,2]
[376561429,1754023838924,-464.35107728,0.0002067,2]
[376561430,1754023838934,-465.77831004,0.0002067,2]
[376561431,1754023838944,-460.0,0.0002067,2]
[376561432,1754023838954,-463.29545648,0.0002067,2]
[376561433,1754023838964,-465.49738114,0.0002067,2]
[376561434,1754023838975,-460.0,0.0002067,2]
[376561435,1754023838985,-460.0,0.0002067,2]
[376561436,1754023838996,-460.0,0.0002067,2]
[376561437,1754023839006,-460.0,0.0002067,2]
[376561438,1754023839017,-461.67604199,0.0002067,2]
[376561439,1754023839029,-460.0,0.0002067,2]
[376561440,1754023839040,-460.0,0.0002067,2]
[376561441,1754023839050,-460.0,0.0002067,2]
[376561442,1754023839061,-460.0,0.0002067,2]
[376561443,1754023839071,-460.22,0.0002067,2]
[376561444,1754023839081,-1032.56605169,0.0002067,2]
[376561445,1754023839095,-453.67243545,0.0002067,2]
[376561446,1754023839117,-243.36151286,0.0002067,2]
[376561447,1754023839133,-464.34561628,0.0002067,2]
[376561448,1754023839143,-90.81916439,0.0002067,2]
[376561494,1754023840611,-369.18083561,0.0002067,2]
[376561497,1754023840622,-459.30714724,0.0002067,2]
[376561502,1754023840667,-0.69285276,0.0002067,2]
[376561504,1754023840678,-365.77020265,0.0002067,2]
[376561506,1754023840688,-697.93,0.00020671,2]
[376561508,1754023840699,-495.5,0.00020671,2]
[376561510,1754023840710,-461.78000096,0.00020671,2]
[376561512,1754023840721,-468.65180991,0.00020671,2]
[376561514,1754023840731,-495.24,0.00020671,2]
[376561516,1754023840742,-460.0,0.00020735,2]
[376561519,1754023840753,-760.42,0.00020804,2]
[376561521,1754023840763,-460.0,0.00020804,2]
[376561523,1754023840774,-460.0,0.00020863,2]
[376561525,1754023840785,-676.96,0.00020863,2]
[376561527,1754023840796,-1383.22,0.00020863,2]
[376561529,1754023840807,-522.3539701,0.000209,2]
[376561531,1754023840817,-460.0,0.00020911,2]
[376561534,1754023840828,-573.63693519,0.00020911,2]
[376561536,1754023840838,-460.0,0.00020911,2]
[376561538,1754023840849,-460.0,0.00020911,2]
[376561540,1754023840859,-460.0,0.00020911,2]
[376561542,1754023840870,-460.0,0.00020911,2]
[376561544,1754023840884,-460.0,0.00020911,2]
[376561547,1754023840895,-460.0,0.00020911,2]
[376561549,1754023840906,-460.0,0.00020911,2]
[376561551,1754023840916,-460.0,0.00020911,2]
[376561553,1754023840927,-471.0302583,0.00020911,2]
[376561555,1754023840938,-460.0,0.00020911,2]
[376561557,1754023840948,-460.0,0.00020911,2]
[376561559,1754023840959,-460.0,0.00020911,2]
[376561577,1754023841119,-460.0,0.00020911,2]
[376561580,1754023841141,-460.0,0.00020911,2]
[376561582,1754023841151,-460.0,0.00020911,2]
[376561584,1754023841160,-460.0,0.00020911,2]
[376561586,1754023841170,-460.0,0.00020911,2]
[376561588,1754023841180,-460.0,0.00020911,2]
[376561590,1754023841189,-460.0,0.00020911,2]
[376561592,1754023841201,-460.0,0.00020911,2]
[376561594,1754023841210,-460.0,0.00020911,2]
[376561596,1754023841219,-460.0,0.00020911,2]
[376561598,1754023841228,-460.0,0.00020911,2]
[376561600,1754023841238,-460.0,0.00020911,2]
[376561602,1754023841247,-460.0,0.00020911,2]
[376561604,1754023841256,-460.0,0.00020911,2]
[376561606,1754023841265,-460.0,0.00020911,2]
[376561608,1754023841275,-460.0,0.00020911,2]
[376561610,1754023841284,-817.93,0.00020911,2]
[376561612,1754023841293,-460.0,0.00020911,2]
[376561614,1754023841303,-460.0,0.00020911,2]
[376561616,1754023841312,-460.0,0.00020911,2]
[376561618,1754023841321,-460.0,0.00020911,2]
[376561620,1754023841331,-1059.27,0.00020911,2]
[376561622,1754023841340,-460.0,0.00020911,2]
[376561624,1754023841350,-460.0,0.00020911,2]
[376561626,1754023841359,-460.0,0.00020911,2]
[376561628,1754023841368,-460.0,0.00020911,2]
[376561630,1754023841379,-460.0,0.00020911,2]
[376561632,1754023841388,-460.0,0.00020912,2]
[376561634,1754023841398,-460.0,0.00020912,2]
[376561636,1754023841407,-460.0,0.00020912,2]
[376561638,1754023841416,-502.79654769,0.00020912,2]
[376561640,1754023841426,-466.11001482,0.00020912,2]
[376561642,1754023841435,-460.0,0.00020912,2]
[376561644,1754023841445,-460.0,0.00020912,2]
[376561646,1754023841454,-2208.62,0.00020914,2]
[376561648,1754023841464,-494.16,0.00020914,2]
[376561650,1754023841473,-460.0,0.00020914,2]
[376561652,1754023841483,-900.56,0.00020914,2]
[376561654,1754023841492,-845.24,0.00020914,2]
[376561656,1754023841501,-690.92,0.00020914,2]
[376561658,1754023841511,-639.33,0.00020915,2]
[376561660,1754023841520,-460.0,0.00020915,2]
[376561662,1754023841530,-460.0,0.00020916,2]
[376561664,1754023841539,-460.0,0.00020944,2]
[376561666,1754023841549,-1060.45,0.00020944,2]
[376561668,1754023841558,-582.85,0.00020944,2]
[376561670,1754023841568,-661.51,0.00020944,2]
[376561672,1754023841577,-460.0,0.00020944,2]
[376561674,1754023841587,-460.0,0.00020944,2]
[376561676,1754023841597,-460.0,0.00020944,2]
[376561678,1754023841607,-460.22,0.00020944,2]
[376561680,1754023841616,-1729.6,0.00020944,2]
[376561682,1754023841626,-697.93,0.00020945,2]
[376561684,1754023841635,-495.5,0.00020945,2]
[376561686,1754023841645,-500.0,0.00020945,2]
[376561688,1754023841656,-495.24,0.00020945,2]
[376561690,1754023841665,-460.0,0.00021009,2]
[376561692,1754023841675,-500.0,0.00021031,2]
[376561694,1754023841684,-500.0,0.00021035,2]
[376561696,1754023841694,-154.8844028,0.00021044,2]
[376561698,1754023841703,-309.1036508,0.00021044,2]
[376561700,1754023841712,-760.42,0.00021078,2]
[376561702,1754023841721,-460.0,0.00021078,2]
[376561704,1754023841730,-234.23,0.0002108,3]
[376561706,1754023841740,-702.73,0.0002108,3]
[376561708,1754023841750,-184.23,0.0002108,10]
[376561710,1754023841759,-153.53,0.0002108,10]
[376561712,1754023841768,-393.34684691,0.00021088,2]
[376561714,1754023841777,-999.0,0.00021089,2]
[376561716,1754023841787,-54734.40923856,0.0002109,2]
[376561718,1754023841799,-1354.59964158,0.0002109,2]